fUSD/lending_fUSD_20250206
["ID","MTS","AMOUNT","RATE_DAILY","PERIOD"]
[351961648,1738861880305,-1733.71,0.00018765,2]
[351961649,1738861880316,-625.07,0.00018765,2]
[351961650,1738861880325,-667.58,0.00018765,2]
[351961651,1738861880335,-1416.66,0.00018765,2]
[351961652,1738861880345,-500.0,0.00018765,2]
[351961653,1738861880358,-1420.72,0.00018765,2]
[351961654,1738861880368,-1568.96,0.00018765,2]
[351961655,1738861880379,-672.97,0.00018765,2]
[351961656,1738861880390,-843.46,0.00018765,2]
[351961657,1738861880403,-1370.61,0.00018765,2]
[351961658,1738861880413,-500.0,0.00018765,2]
[351961659,1738861880423,-753.37,0.00018765,2]
[351961660,1738861880433,-1322.14,0.00018765,2]
[351961661,1738861880443,-249.44138755,0.00018765,2]
[351961662,1738861880458,-2591.14861245,0.00018765,2]
[351961663,1738861880468,-500.0,0.00018765,2]
[351961664,1738861880477,-521.51,0.00018765,2]
[351961665,1738861880487,-3061.97054961,0.00018765,2]
[351961666,1738861881027,-500.0,0.0001712,2]
[351961667,1738861881036,-466.8,0.0001712,2]
[351961668,1738861881052,-33.2,0.0001712,2]
[351961669,1738861881062,-500.0,0.00017121,2]
[351961670,1738861881071,-500.0,0.00017121,2]
[351961671,1738861881081,-23.21401008,0.00017257,2]
[351961672,1738861881092,-352.52598992,0.00017257,2]
[351961673,1738861881102,-467.67,0.00017257,2]
[351961674,1738861881111,-176.27,0.00017258,2]
[351961675,1738861881121,-500.0,0.00017395,2]
[351961676,1738861881131,-500.0,0.00017532,2]
[351961677,1738861881150,-500.0,0.00017669,2]
[351961678,1738861881160,-500.0,0.00017806,2]
[351961679,1738861881169,-500.0,0.00017943,2]
[351961680,1738861881178,-248.99,0.0001808,2]
[351961681,1738861881188,-886.00945039,0.00018765,2]
[351961682,1738861881197,-1271.81,0.00018765,2]
[351961683,1738861881207,-708.72,0.00018765,2]
[351961684,1738861881216,-791.7,0.00018765,2]
[351961685,1738861881226,-1069.89,0.00018765,2]
[351961686,1738861881235,-1042.41,0.00018765,2]
[351961687,1738861881244,-957.73,0.00018765,2]
[351961688,1738861881254,-1571.35,0.00018765,2]
[351961689,1738861881263,-1606.61,0.00018765,2]
[351961690,1738861881275,-519.25,0.00018765,2]
[351961691,1738861881285,-1542.73,0.00018765,2]
[351961692,1738861881294,-692.64,0.00018765,2]
[351961693,1738861881303,-657.02,0.00018765,2]
[351961694,1738861881313,-584.58,0.00018765,2]
[351961695,1738861881323,-1586.74,0.00018765,2]
[351961696,1738861881332,-578.78,0.00018765,2]
[351961697,1738861881342,-1730.87,0.00018765,2]
[351961698,1738861881351,-500.0,0.00018765,2]
[351961699,1738861881362,-681.25,0.00018765,2]
[351961700,1738861881373,-682.56,0.00018765,2]
[351961701,1738861881383,-500.0,0.00018765,2]
[351961702,1738861881393,-1123.68,0.00018765,2]
[351961703,1738861881405,-500.0,0.00018765,2]
[351961704,1738861881415,-839.75,0.00018765,2]
[351961705,1738861881426,-1377.35,0.00018765,2]
[351961706,1738861881435,-1194.33,0.00018765,2]
[351961707,1738861881446,-742.25,0.00018765,2]
[351961708,1738861881455,-528.18,0.00018765,2]
[351961709,1738861881465,-2239.71,0.00018765,2]
[351961710,1738861881475,-729.85,0.00018765,2]
[351961711,1738861881485,-500.0,0.00018765,2]
[351961712,1738861881494,-1212.61,0.00018765,2]
[351961713,1738861881503,-500.0,0.00018765,2]
[351961714,1738861881512,-514.18,0.00018765,2]
[351961715,1738861881522,-689.8,0.00018765,2]
[351961716,1738861881531,-533.13,0.00018765,2]
[351961717,1738861881541,-500.0,0.00018765,2]
[351961718,1738861881550,-929.26,0.00018765,2]
[351961719,1738861881560,-738.95,0.00018765,2]
[351961720,1738861881570,-500.0,0.00018765,2]
[351961721,1738861881579,-539.89,0.00018765,2]
[351961722,1738861881588,-654.59,0.00018765,2]
[351961723,1738861881749,-766.1,0.00018765,2]
[351961724,1738861881763,-1727.76,0.00018765,2]
[351961725,1738861881772,-2394.19,0.00018765,2]
[351961726,1738861881781,-116.33455969,0.00018765,2]
[351961727,1738861881792,-254.83349832,0.00018765,2]
[351961728,1738861881802,-605.86,0.00018765,2]
[351961729,1738861881811,-651.71,0.00018765,2]
[351961730,1738861881820,-500.0,0.00018765,2]
[351961731,1738861881829,-500.0,0.00018765,2]
[351961732,1738861881839,-1000.0,0.00018765,2]
[351961733,1738861881848,-500.0,0.00018765,2]
[351961734,1738861881858,-1210.31,0.00018765,2]
[351961735,1738861881868,-721.6,0.00018765,2]
[351961736,1738861881877,-504.71,0.00018765,2]
[351961737,1738861881887,-493.46797267,0.00018765,2]
[351961738,1738861881898,-1238.99,0.00018765,2]
[351961739,1738861881907,-862.22,0.00018765,2]
[351961740,1738861881916,-285.14330999,0.00018765,2]
[351961741,1738861881926,-646.48,0.00018766,2]
[351961742,1738861881935,-882.64,0.00018766,2]
[351961743,1738861881944,-500.0,0.00018766,2]
[351961744,1738861881954,-1322.52,0.00018766,2]
[351961745,1738861881964,-500.0,0.00018766,2]
[351961746,1738861881973,-860.43,0.00018766,2]
[351961747,1738861881983,-618.33,0.00018766,2]
[351961748,1738861881992,-882.18,0.00018766,2]
[351961749,1738861882001,-1093.09,0.00018766,2]
[351961750,1738861882010,-801.19,0.00018766,2]
[351961751,1738861882020,-735.64,0.00018766,2]
[351961752,1738861882029,-773.55,0.00018766,2]
[351961753,1738861882038,-512.91,0.00018766,2]
[351961754,1738861882048,-550.45,0.00018766,2]
[351961755,1738861882057,-647.51,0.00018766,2]
[351961756,1738861882070,-612.38,0.00018766,2]
[351961757,1738861882080,-500.0,0.00018766,2]
[351961758,1738861882089,-980.57,0.00018766,2]
[351961759,1738861882098,-515.98,0.00018766,2]
[351961760,1738861882107,-795.41,0.00018766,2]
[351961761,1738861882117,-500.0,0.00018766,2]
[351961762,1738861882126,-1166.1,0.00018766,2]
[351961763,1738861882136,-841.63,0.00018766,2]
[351961764,1738861882151,-564.64,0.00018766,2]
[351961765,1738861882161,-842.75,0.00018766,2]
[351961766,1738861882173,-549.06,0.00018766,2]
[351961767,1738861882183,-199.79205649,0.00018766,2]
[351961768,1738861882194,-838.7,0.00018766,2]
[351961769,1738861882204,-871.1,0.00018766,2]
[351961770,1738861882215,-500.0,0.00018766,2]
[351961771,1738861882225,-549.37,0.00018766,2]
[351961772,1738861882235,-888.81,0.00018766,2]
[351961773,1738861882245,-635.82,0.00018766,2]
[351961774,1738861882255,-500.0,0.00018766,2]
[351961775,1738861882265,-758.24,0.00018766,2]
[351961776,1738861882277,-887.86,0.00018766,2]
[351961777,1738861882287,-751.66,0.00018766,2]
[351961778,1738861882298,-817.88,0.00018766,2]
[351961779,1738861882308,-500.0,0.00018766,2]
[351961780,1738861882319,-754.86,0.00018766,2]
[351961781,1738861882328,-678.78,0.00018766,2]
[351961782,1738861882338,-661.11,0.00018766,2]
[351961783,1738861882348,-500.0,0.00018766,2]
[351961784,1738861882358,-500.0,0.00018766,2]
[351961785,1738861882369,-500.0,0.00018766,2]
[351961786,1738861882379,-500.0,0.00018766,2]
[351961787,1738861882388,-500.0,0.00018766,2]
[351961788,1738861882402,-505.27,0.00018766,2]
[351961789,1738861882411,-232.23808475,0.00018766,2]
[351961790,1738861882421,-500.0,0.00018766,2]
[351961791,1738861882430,-542.84,0.00018766,2]
[351961792,1738861882440,-500.0,0.00018766,2]
[351961793,1738861882450,-568.48,0.00018766,2]
[351961794,1738861882460,-810.69,0.00018766,2]
[351961795,1738861882469,-500.0,0.00018766,2]
[351961796,1738861882480,-5300.0,0.000188,6]
[351961797,1738861882489,-205.0,0.0001882,2]
[351961798,1738861882498,-4943.19983026,0.00018848,2]
[351961799,1738861882508,-1000.0,0.00018885,2]
[351961800,1738861882518,-6000.0,0.000189,15]
[351961801,1738861882527,-1000.0,0.000189,6]
[351961802,1738861882537,-2320.36,0.00018901,2]
[351961803,1738861882546,-1057.3,0.00018901,2]
[351961804,1738861882556,-1390.44,0.00018901,2]
[351961805,1738861882565,-702.27,0.00018901,2]
[351961806,1738861882574,-1330.76,0.00018901,2]
[351961807,1738861882584,-1549.77,0.00018901,2]
[351961808,1738861882594,-1149.66,0.00018901,2]
[351961809,1738861882603,-500.0,0.00018901,2]
[351961810,1738861882613,-158.016599,0.00018901,2]
[351961811,1738861882622,-1130.88,0.00018901,2]
[351961812,1738861882631,-1058.42,0.00018901,2]
[351961813,1738861882641,-591.92,0.00018901,2]
[351961814,1738861882655,-919.01,0.00018901,2]
[351961815,1738861882665,-1259.14,0.00018901,2]
[351961816,1738861882674,-2902.47,0.00018901,2]
[351961817,1738861882683,-1080.79,0.00018901,2]
[351961818,1738861882693,-1591.11,0.00018901,2]
[351961819,1738861882703,-1302.97,0.00018901,2]
[351961820,1738861882712,-1528.37,0.00018901,2]
[351961821,1738861882722,-1378.0,0.00018901,2]
[351961822,1738861882732,-1928.71,0.00018901,2]
[351961823,1738861882742,-1701.03,0.00018901,2]
[351961824,1738861882752,-1215.91,0.00018901,2]
[351961825,1738861882761,-1505.03,0.00018901,2]
[351961826,1738861882772,-3013.77,0.00018901,2]
[351961827,1738861882782,-936.5,0.00018901,2]
[351961828,1738861882791,-1793.39,0.00018901,2]
[351961829,1738861882801,-1477.06,0.00018901,2]
[351961830,1738861882811,-1577.4,0.00018901,2]
[351961831,1738861882820,-5300.74,0.00018901,2]
[351961832,1738861882832,-1169.73,0.00018901,2]
[351961833,1738861882842,-2574.15,0.00018901,2]
[351961834,1738861882853,-2515.4,0.00018901,2]
[351961835,1738861882863,-2027.32,0.00018901,2]
[351961836,1738861882872,-2110.85,0.00018901,2]
[351961837,1738861882881,-1476.55,0.00018901,2]
[351961838,1738861882890,-1529.46,0.00018901,2]
[351961839,1738861882902,-2849.47,0.00018901,2]
[351961840,1738861882911,-1830.91,0.00018901,2]
[351961841,1738861882921,-3547.39,0.00018901,2]
[351961842,1738861882931,-1971.2,0.00018901,2]
[351961843,1738861882940,-1234.07,0.00018901,2]
[351961844,1738861882950,-500.0,0.00018901,2]
[351961845,1738861882959,-1544.59,0.00018901,2]
[351961846,1738861882969,-300.0,0.00018901,2]
[351961847,1738861882979,-1656.43,0.00018901,2]
[351961848,1738861882989,-1394.51,0.00018901,2]
[351961849,1738861882998,-3743.69,0.00018901,2]
[351961850,1738861883008,-963.12,0.00018901,2]
[351961851,1738861883018,-1700.26,0.00018901,2]
[351961852,1738861883027,-1311.59,0.00018901,2]
[351961853,1738861883037,-1736.78,0.00018901,2]
[351961854,1738861883047,-1017.17,0.00018901,2]
[351961855,1738861883057,-1041.007471,0.00018901,2]
[351961856,1738861883160,-500.0,0.0001712,2]
[351961857,1738861883171,-500.0,0.00017257,2]
[351961858,1738861883182,-492.462529,0.00018901,2]
[351961859,1738861883193,-568.39,0.00018902,2]
[351961860,1738861883202,-689.15,0.00018902,2]
[351961861,1738861883211,-500.0,0.00018902,2]
[351961862,1738861883221,-500.0,0.00018902,2]
[351961863,1738861883231,-1002.74,0.00018902,2]
[351961864,1738861883241,-692.54,0.00018902,2]
[351961865,1738861883251,-738.1,0.00018902,2]
[351961866,1738861883261,-595.37,0.00018902,2]
[351961867,1738861883271,-500.0,0.00018902,2]
[351961868,1738861883284,-863.61,0.00018902,2]
[351961869,1738861883294,-645.84,0.00018902,2]
[351961870,1738861883304,-596.44,0.00018902,2]
[351961871,1738861883315,-500.0,0.00018902,2]
[351961872,1738861883326,-800.76,0.00018902,2]
[351961873,1738861883336,-777.26,0.00018902,2]
[351961874,1738861883346,-500.0,0.00018902,2]
[351961875,1738861883357,-548.07,0.00018902,2]
[351961876,1738861883367,-500.0,0.00018902,2]
[351961877,1738861883377,-500.0,0.00018902,2]
[351961878,1738861883386,-672.55,0.00018902,2]
[351961879,1738861883399,-500.0,0.00018902,2]
[351961880,1738861883410,-874.6,0.00018902,2]
[351961881,1738861883421,-642.87,0.00018902,2]
[351961882,1738861883432,-607.11,0.00018902,2]
[351961883,1738861883441,-500.0,0.00018902,2]
[351961884,1738861883451,-500.0,0.00018902,2]
[351961885,1738861883461,-1058.07,0.00018902,2]
[351961886,1738861883471,-514.1,0.00018902,2]
[351961887,1738861883481,-2325.74,0.00018902,2]
[351961888,1738861883491,-577.77,0.00018902,2]
[351961889,1738861883501,-500.0,0.00018902,2]
[351961890,1738861883510,-500.0,0.00018902,2]
[351961891,1738861883520,-500.0,0.00018902,2]
[351961892,1738861883529,-500.0,0.00018902,2]
[351961893,1738861883539,-910.94,0.00018902,2]
[351961894,1738861883548,-589.83,0.00018902,2]
[351961895,1738861883558,-500.0,0.00018902,2]
[351961896,1738861883568,-500.0,0.00018902,2]
[351961897,1738861883577,-590.8050479,0.00018902,2]
[351961898,1738861883587,-785.95,0.00018902,2]
[351961899,1738861883596,-812.17,0.00018902,2]
[351961900,1738861883606,-500.0,0.00018902,2]
[351961901,1738861883616,-970.04,0.00018902,2]
[351961902,1738861883626,-550.87,0.00018902,2]
[351961903,1738861883636,-500.0,0.00018902,2]
[351961904,1738861883646,-622.89,0.00018902,2]
[351961905,1738861883656,-500.0,0.00018902,2]
[351961906,1738861883666,-940.72,0.00018902,2]
[351961907,1738861883675,-500.0,0.00018902,2]
[351961908,1738861883684,-527.23,0.00018902,2]
[351961909,1738861883693,-687.44,0.00018902,2]
[351961910,1738861883703,-865.53,0.00018902,2]
[351961911,1738861883712,-646.69,0.00018902,2]
[351961912,1738861883722,-500.0,0.00018902,2]
[351961913,1738861883732,-500.0,0.00018902,2]
[351961914,1738861883742,-1138.12,0.00018902,2]
[351961915,1738861883752,-1066.17,0.00018902,2]
[351961916,1738861883762,-500.0,0.00018902,2]
[351961917,1738861883772,-506.3332817,0.00018902,2]
[351961918,1738861883782,-1088.33,0.00018902,2]
[351961919,1738861883791,-1133.21,0.00018902,2]
[351961920,1738861883800,-2580.85,0.00018902,2]
[351961921,1738861883810,-500.0,0.00018902,2]
[351961922,1738861883819,-507.71,0.00018902,2]
[351961923,1738861883828,-570.24,0.00018902,2]
[351961924,1738861883838,-500.0,0.00018902,2]
[351961925,1738861883847,-829.91,0.00018902,2]
[351961926,1738861883856,-501.42,0.00018902,2]
[351961927,1738861883866,-1418.09,0.00018902,2]
[351961928,1738861883875,-699.42,0.00018902,2]
[351961929,1738861883884,-1474.87,0.00018902,2]
[351961930,1738861883895,-500.0,0.00018902,2]
[351961931,1738861883904,-953.52,0.00018902,2]
[351961932,1738861883913,-500.0,0.00018902,2]
[351961933,1738861883923,-500.0,0.00018902,2]
[351961934,1738861883932,-902.61,0.00018902,2]
[351961935,1738861883941,-500.0,0.00018902,2]
[351961936,1738861883950,-1661.17,0.00018902,2]
[351961937,1738861883959,-1847.77,0.00018902,2]
[351961938,1738861883969,-1733.71,0.00018902,2]
[351961939,1738861883978,-625.07,0.00018902,2]
[351961940,1738861883988,-667.58,0.00018902,2]
[351961941,1738861883997,-1416.66,0.00018902,2]
[351961942,1738861884006,-500.0,0.00018902,2]
[351961943,1738861884017,-1420.72,0.00018902,2]
[351961944,1738861884026,-1568.96,0.00018902,2]
[351961945,1738861884038,-672.97,0.00018902,2]
[351961946,1738861884048,-843.46,0.00018902,2]
[351961947,1738861884058,-1370.61,0.00018902,2]
[351961948,1738861884068,-500.0,0.00018902,2]
[351961949,1738861884078,-753.37,0.00018902,2]
[351961950,1738861884087,-1322.14,0.00018902,2]
[351961951,1738861884098,-2840.59,0.00018902,2]
[351961952,1738861884107,-500.0,0.00018902,2]
[351961953,1738861884117,-521.51,0.00018902,2]
[351961954,1738861884127,-3947.98,0.00018902,2]
[351961955,1738861884137,-1271.81,0.00018902,2]
[351961956,1738861884147,-708.72,0.00018902,2]
[351961957,1738861884157,-791.7,0.00018902,2]
[351961958,1738861884167,-1069.89,0.00018902,2]
[351961959,1738861884176,-1042.41,0.00018902,2]
[351961960,1738861884185,-957.73,0.00018902,2]
[351961961,1738861884195,-1571.35,0.00018902,2]
[351961962,1738861884204,-1606.61,0.00018902,2]
[351961963,1738861884214,-519.25,0.00018902,2]
[351961964,1738861884223,-1090.8091414,0.00018902,2]
[351961965,1738861884236,-451.9208586,0.00018902,2]
[351961966,1738861884246,-692.64,0.00018902,2]
[351961967,1738861884256,-657.02,0.00018902,2]
[351961968,1738861884265,-584.58,0.00018902,2]
[351961969,1738861884276,-1586.74,0.00018902,2]
[351961970,1738861884287,-578.78,0.00018902,2]
[351961971,1738861884297,-1730.87,0.00018902,2]
[351961972,1738861884307,-500.0,0.00018902,2]
[351961973,1738861884317,-681.25,0.00018902,2]
[351961974,1738861884327,-682.56,0.00018902,2]
[351961975,1738861884337,-500.0,0.00018902,2]
[351961976,1738861884347,-1123.68,0.00018902,2]
[351961977,1738861884356,-500.0,0.00018902,2]
[351961978,1738861884368,-839.75,0.00018902,2]
[351961979,1738861884378,-1377.35,0.00018902,2]
[351961980,1738861884387,-1194.33,0.00018902,2]
[351961981,1738861884398,-742.25,0.00018902,2]
[351961982,1738861884408,-528.18,0.00018902,2]
[351961983,1738861884418,-2239.71,0.00018902,2]
[351961984,1738861884427,-729.85,0.00018902,2]
[351961985,1738861884437,-500.0,0.00018902,2]
[351961986,1738861884446,-1212.61,0.00018902,2]
[351961987,1738861884456,-500.0,0.00018902,2]
[351961988,1738861884466,-82.60973478,0.00018902,2]
[351961989,1738861884478,-431.57026522,0.00018902,2]
[351961990,1738861884487,-573.92911784,0.00018902,2]
[351961991,1738861884499,-115.87088216,0.00018902,2]
[351961992,1738861884508,-533.13,0.00018902,2]
[351961993,1738861884518,-929.26,0.00018902,2]
[351961994,1738861884528,-738.95,0.00018902,2]
[351961995,1738861884538,-500.0,0.00018902,2]
[351961996,1738861884547,-539.89,0.00018902,2]
[351961997,1738861884557,-500.0,0.00018902,2]
[351961998,1738861884567,-654.59,0.00018902,2]
[351961999,1738861884578,-766.1,0.00018902,2]
[351962000,1738861884588,-1727.76,0.00018902,2]
[351962001,1738861884597,-2394.19,0.00018902,2]
[351962002,1738861884607,-605.86,0.00018902,2]
[351962003,1738861884616,-651.71,0.00018902,2]
[351962004,1738861884626,-500.0,0.00018902,2]
[351962005,1738861884635,-500.0,0.00018902,2]
[351962006,1738861884795,-1000.0,0.00018902,2]
[351962007,1738861884807,-500.0,0.00018902,2]
[351962008,1738861884817,-1210.31,0.00018902,2]
[351962009,1738861884827,-721.6,0.00018902,2]
[351962010,1738861884836,-504.71,0.00018902,2]
[351962011,1738861884846,-1238.99,0.00018902,2]
[351962012,1738861884856,-862.22,0.00018902,2]
[351962013,1738861884865,-646.48,0.00018903,2]
[351962014,1738861884874,-882.64,0.00018903,2]
[351962015,1738861884883,-500.0,0.00018903,2]
[351962016,1738861884894,-1322.52,0.00018903,2]
[351962017,1738861884903,-500.0,0.00018903,2]
[351962018,1738861884912,-860.43,0.00018903,2]
[351962019,1738861884922,-618.33,0.00018903,2]
[351962020,1738861884932,-882.18,0.00018903,2]
[351962021,1738861884942,-1093.09,0.00018903,2]
[351962022,1738861884952,-801.19,0.00018903,2]
[351962023,1738861884962,-735.64,0.00018903,2]
[351962024,1738861884971,-773.55,0.00018903,2]
[351962025,1738861884981,-512.91,0.00018903,2]
[351962026,1738861884991,-550.45,0.00018903,2]
[351962027,1738861885001,-647.51,0.00018903,2]
[351962028,1738861885010,-612.38,0.00018903,2]
[351962029,1738861885020,-500.0,0.00018903,2]
[351962030,1738861885030,-980.57,0.00018903,2]
[351962031,1738861885040,-515.98,0.00018903,2]
[351962032,1738861885049,-795.41,0.00018903,2]
[351962033,1738861885058,-500.0,0.00018903,2]
[351962034,1738861885068,-1166.1,0.00018903,2]
[351962035,1738861885078,-841.63,0.00018903,2]
[351962036,1738861885088,-564.64,0.00018903,2]
[351962037,1738861885097,-842.75,0.00018903,2]
[351962038,1738861885107,-549.06,0.00018903,2]
[351962039,1738861885116,-838.7,0.00018903,2]
[351962040,1738861885125,-871.1,0.00018903,2]
[351962041,1738861885135,-500.0,0.00018903,2]
[351962042,1738861885143,-549.37,0.00018903,2]
[351962043,1738861885153,-888.81,0.00018903,2]
[351962044,1738861885163,-635.82,0.00018903,2]
[351962045,1738861885175,-421.66677583,0.00018903,2]
[351962046,1738861885185,-758.24,0.00018903,2]
[351962047,1738861885194,-887.86,0.00018903,2]
[351962048,1738861885205,-751.66,0.00018903,2]
[351962049,1738861885215,-817.88,0.00018903,2]
[351962050,1738861885225,-500.0,0.00018903,2]
[351962051,1738861885236,-754.86,0.00018903,2]
[351962052,1738861885246,-678.78,0.00018903,2]
[351962053,1738861885256,-661.11,0.00018903,2]
[351962054,1738861885267,-500.0,0.00018903,2]
[351962055,1738861885282,-500.0,0.00018903,2]
[351962056,1738861885291,-500.0,0.00018903,2]
[351962057,1738861885301,-500.0,0.00018903,2]
[351962058,1738861885310,-500.0,0.00018903,2]
[351962059,1738861885319,-505.27,0.00018903,2]
[351962060,1738861885328,-208.25730546,0.00018903,2]
[351962061,1738861885337,-542.84,0.00018903,2]
[351962062,1738861885346,-500.0,0.00018903,2]
[351962063,1738861885356,-568.48,0.00018903,2]
[351962064,1738861885366,-810.69,0.00018903,2]
[351962065,1738861885375,-500.0,0.00018903,2]
[351962066,1738861885385,-200.0,0.00018912,2]
[351962067,1738861885394,-200.0,0.00018912,2]
[351962068,1738861885404,-500.0,0.00018999,2]
[351962069,1738861885413,-554.81,0.00018999,2]
[351962070,1738861885423,-500.0,0.00018999,2]
[351962071,1738861885432,-500.0,0.00018999,2]
[351962072,1738861885441,-500.0,0.00018999,2]
[351962073,1738861885451,-500.0,0.00018999,2]
[351962074,1738861885460,-500.0,0.00018999,2]
[351962075,1738861885469,-500.0,0.00018999,2]
[351962076,1738861885478,-500.0,0.00018999,2]
[351962077,1738861885488,-500.0,0.00018999,2]
[351962078,1738861885497,-548.83,0.00018999,2]
[351962079,1738861885507,-607.69,0.00018999,2]
[351962080,1738861885516,-500.0,0.00018999,2]
[351962081,1738861885525,-500.0,0.00018999,2]
[351962082,1738861885534,-402.73590631,0.00018999,2]
[351962083,1738861885543,-500.0,0.00018999,2]
[351962084,1738861885552,-500.0,0.00018999,2]
[351962085,1738861885562,-513.34,0.00018999,2]
[351962086,1738861885571,-500.0,0.00018999,2]
[351962087,1738861885580,-159.9075796,0.00018999,2]
[351962088,1738861885589,-500.0,0.00018999,2]
[351962089,1738861885599,-500.0,0.00018999,2]
[351962090,1738861885608,-631.46,0.00018999,2]
[351962091,1738861885619,-752.91,0.00018999,2]
[351962092,1738861885628,-500.0,0.00018999,2]
[351962093,1738861885637,-500.0,0.00018999,2]
[351962094,1738861885648,-500.0,0.00018999,2]
[351962095,1738861885657,-619.12125048,0.00018999,2]
[351962096,1738861885666,-500.0,0.00018999,2]
[351962097,1738861885675,-500.0,0.00018999,2]
[351962098,1738861885684,-500.0,0.00018999,2]
[351962099,1738861885693,-500.0,0.00018999,2]
[351962100,1738861885702,-500.0,0.00018999,2]
[351962101,1738861885711,-500.0,0.00018999,2]
[351962102,1738861885720,-500.0,0.00018999,2]
[351962103,1738861885730,-500.0,0.00018999,2]
[351962104,1738861885740,-500.0,0.00018999,2]
[351962105,1738861885750,-500.0,0.00018999,2]
[351962106,1738861885760,-500.0,0.00018999,2]
[351962107,1738861885770,-500.0,0.00018999,2]
[351962108,1738861885779,-500.0,0.00018999,2]
[351962109,1738861885788,-500.0,0.00018999,2]
[351962110,1738861885797,-500.0,0.00018999,2]
[351962111,1738861885807,-500.0,0.00018999,2]
[351962112,1738861885816,-500.0,0.00018999,2]
[351962113,1738861885825,-500.0,0.00018999,2]
[351962114,1738861885834,-673.67,0.00018999,2]
[351962115,1738861885844,-500.0,0.00018999,2]
[351962116,1738861885853,-500.0,0.00018999,2]
[351962117,1738861885863,-500.0,0.00018999,2]
[351962118,1738861885872,-500.0,0.00018999,2]
[351962119,1738861885881,-500.0,0.00018999,2]
[351962120,1738861885890,-500.0,0.00018999,2]
[351962121,1738861885903,-500.0,0.00018999,2]
[351962122,1738861885912,-500.0,0.00018999,2]
[351962123,1738861885921,-500.0,0.00018999,2]
[351962124,1738861885930,-176.12123966,0.00018999,2]
[351962125,1738861885940,-500.0,0.00018999,2]
[351962126,1738861885949,-500.0,0.00018999,2]
[351962127,1738861885958,-500.0,0.00018999,2]
[351962128,1738861885967,-362.5319695,0.00018999,2]
[351962129,1738861885977,-500.0,0.00018999,2]
[351962130,1738861885986,-500.0,0.00018999,2]
[351962131,1738861885996,-500.0,0.00018999,2]
[351962132,1738861886006,-1025.85,0.00018999,2]
[351962133,1738861886015,-500.0,0.00018999,2]
[351962134,1738861886025,-500.0,0.00018999,2]
[351962135,1738861886035,-500.0,0.00018999,2]
[351962136,1738861886045,-500.0,0.00018999,2]
[351962137,1738861886054,-500.0,0.00018999,2]
[351962138,1738861886064,-500.0,0.00018999,2]
[351962139,1738861886073,-500.0,0.00018999,2]
[351962140,1738861886082,-500.0,0.00018999,2]
[351962141,1738861886092,-500.0,0.00018999,2]
[351962142,1738861886101,-500.0,0.00018999,2]
[351962143,1738861886110,-500.0,0.00018999,2]
[351962144,1738861886120,-500.0,0.00018999,2]
[351962145,1738861886129,-500.0,0.00018999,2]
[351962146,1738861886139,-500.0,0.00018999,2]
[351962147,1738861886151,-500.0,0.00018999,2]